bitfinex-derivatives/quotes_ETHF0:USTF0_20250709
["timestamp","ask_amount","ask_price","bid_price","bid_amount"]
[1752104439737,2.60190954,2780.0,2779.9,1.92509]
[1752104439945,2.25177,2780.0,2779.9,0.71919]
[1752104442541,0.6106,2780.0,2779.9,0.71919]
[1752104442738,0.6106,2780.0,2779.9,5.20449]
[1752104443041,4.84889,2780.4,2780.3,0.71909]
[1752104443244,31.46758142,2780.4,2780.3,0.71909]
[1752104443444,32.08788142,2780.4,2780.3,0.71909]
[1752104444144,33.16647142,2780.4,2779.9,4.4853]
[1752104444343,0.71916,2780.1,2780.0,0.71914]
[1752104444643,2.26146,2780.1,2780.0,0.71914]
[1752104445943,1.5423,2780.1,2780.0,0.71914]
[1752104446343,0.6203,2780.1,2780.0,0.71914]
[1752104447650,1.33944,2780.1,2780.0,0.71914]
[1752104447844,2.26144,2780.1,2780.0,0.71914]
[1752104449148,1.5423,2780.1,2780.0,0.71914]
[1752104449552,2.26144,2780.1,2780.0,0.71914]
[1752104451450,0.71919,2780.0,2779.9,0.71917]
[1752104451752,0.71919,2780.0,2779.8,0.6425]
[1752104451753,0.6203,2780.1,2779.8,0.6425]
[1752104451952,0.71924,2779.8,2779.7,0.71922]
[1752104452144,2.26154,2779.8,2779.7,0.71922]
[1752104452350,2.91414,2779.8,2779.7,0.71922]
[1752104452548,2.1949,2779.8,2779.4,3.20031993]
[1752104452852,1.00300768,2779.5,2779.4,3.91963993]
[1752104453055,1.62330768,2779.5,2779.4,0.71932]
[1752104453356,1.64123,2779.8,2779.7,0.71925]
[1752104453655,2.54328918,2779.8,2779.7,0.71925]
[1752104453846,1.89068918,2779.8,2779.7,0.71925]
[1752104454047,0.6203,2779.8,2779.7,0.71925]
[1752104454451,0.6203,2779.8,2779.7,2.57155]
[1752104454952,1.89058643,2779.8,2779.7,2.57155]
[1752104455550,0.6203,2779.8,2779.7,2.57155]
[1752104456055,1.5423,2779.8,2779.7,2.57155]
[1752104456457,2.26152,2779.8,2779.7,2.57155]
[1752104456655,2.26152,2779.8,2779.7,0.71925]
[1752104457052,1.5423,2779.8,2779.7,0.71925]
[1752104457356,2.26152,2779.8,2779.7,0.71925]
[1752104457552,2.26152,2779.8,2779.6,3.2078]
[1752104457553,0.71925,2779.7,2779.6,0.71925]
[1752104457752,0.71932,2779.6,2779.5,0.71928]
[1752104457954,0.71935,2779.3,2779.1,3.20031993]
[1752104458254,0.71935,2779.3,2779.2,0.71938]
[1752104458452,1.33965,2779.3,2779.2,0.71938]
[1752104458848,2.26165,2779.3,2779.2,0.71938]
[1752104459355,3.26465768,2779.3,2779.2,0.71938]
[1752104460052,2.26165,2779.3,2779.2,0.71938]
[1752104460253,2.54530768,2779.3,2779.2,0.71938]
[1752104461753,3.26465768,2779.3,2779.2,0.71938]
[1752104462057,0.7194,2779.2,2779.1,0.71938]
[1752104462258,3.26470768,2779.2,2779.1,0.71938]
[1752104463552,0.71943,2779.0,2778.9,0.71941]
[1752104463863,2.54530768,2779.0,2778.9,0.71941]
[1752104465961,3.26473768,2779.0,2778.9,0.71941]
[1752104466258,2.54530768,2779.0,2778.9,0.71941]
[1752104466856,3.26473768,2779.0,2778.9,0.71941]
[1752104467055,2.54530768,2779.0,2778.9,0.71941]
[1752104467256,3.26473768,2779.0,2778.9,0.71941]
[1752104467460,2.54530768,2779.0,2778.9,0.71941]
[1752104467962,1.5423,2779.0,2778.9,0.71941]
[1752104468354,0.6203,2779.0,2778.9,0.71941]
[1752104468555,3.92716,2779.3,2779.2,0.71938]
[1752104468556,4.1814,2779.3,2779.2,0.71938]
[1752104468861,1.5939,2779.3,2779.2,0.71938]
[1752104469062,2.31325,2779.3,2779.2,0.71938]
[1752104469261,2.94165,2779.3,2779.2,0.71938]
[1752104470454,2.2223,2779.3,2779.2,0.71938]
[1752104472564,2.94165,2779.3,2779.2,0.71938]
[1752104472961,0.71943,2779.1,2779.0,0.7194]
[1752104473158,0.71943,2779.1,2778.7,2.41112]
[1752104473159,0.71951,2778.8,2778.7,0.71946]
[1752104473355,0.71953,2778.7,2778.6,0.71952]
[1752104473566,3.5824,2778.7,2778.3,3.20031993]
[1752104473864,1.69315,2778.6,2778.5,0.71953]
[1752104474054,1.9564,2778.6,2778.5,0.71953]
[1752104474261,3.64953,2778.6,2778.5,0.71953]
[1752104474959,4.65253768,2778.6,2778.5,0.71953]
[1752104475967,0.71958,2778.5,2778.4,0.71956]
[1752104476265,2.32048,2778.5,2778.4,0.71956]
[1752104476465,2.32046,2778.5,2778.4,0.71956]
[1752104477067,1.6009,2778.5,2778.4,0.71956]
[1752104477456,2.32046,2778.5,2778.4,0.71956]
[1752104478764,1.6009,2778.5,2778.4,0.71956]
[1752104479469,2.32046,2778.5,2778.4,0.71956]
[1752104488471,0.71963,2778.3,2778.2,0.71959]
[1752104488671,3.32353768,2778.3,2778.2,0.71959]
[1752104489875,3.32353768,2778.3,2777.8,1.8873]
[1752104489876,0.7197,2778.1,2778.0,0.71967]
[1752104490166,0.71976,2777.8,2777.7,0.71973]
[1752104490368,1.34706,2777.8,2777.7,0.71973]
[1752104490570,2.32066,2777.8,2777.7,0.71973]
[1752104490873,0.71976,2777.7,2777.6,0.71979]
[1752104491070,1.34706,2777.7,2777.6,0.71979]
[1752104491271,3.32366768,2777.7,2777.6,0.71979]
[1752104491666,0.71982,2777.5,2777.4,3.92014993]
[1752104491871,3.32372768,2777.5,2777.4,3.92014993]
[1752104492369,3.32372768,2777.5,2777.4,0.71983]
[1752104493574,2.60390768,2777.5,2777.4,0.71983]
[1752104493878,1.6009,2777.5,2777.4,0.71983]
[1752104495368,2.32072,2777.5,2777.4,0.71983]
[1752104499976,0.71987,2777.4,2777.3,0.71984]
[1752104500180,1.35947,2777.4,2777.3,0.71984]
[1752104500380,2.94857,2777.4,2777.3,0.71984]
[1752104504990,0.71987,2777.3,2777.2,3.92767]
[1752104505189,2.30897,2777.3,2777.2,3.92767]
[1752104505393,1.5891,2777.3,2777.2,3.92767]
[1752104506797,0.6403,2777.3,2777.2,3.92767]
[1752104507086,0.6403,2777.3,2777.2,0.71987]
[1752104513889,2.59210768,2777.3,2777.2,0.71987]
[1752104514094,3.31197768,2777.3,2777.2,0.71987]
[1752104515994,3.31197768,2777.3,2777.0,1.79985]
[1752104515995,0.71995,2777.1,2777.0,0.71991]
[1752104516194,3.31205768,2777.1,2777.0,0.71991]
[1752104516390,0.71997,2777.0,2776.9,0.71995]
[1752104516588,2.31157,2777.0,2776.9,0.71995]
[1752104516896,2.95187,2777.0,2776.9,0.71995]
[1752104520099,4.22268013,2777.0,2776.9,0.71995]
[1752104520394,3.50271013,2777.0,2776.4,3.20031993]
[1752104520696,1.66878,2776.9,2776.8,0.72]
[1752104520998,2.30908,2776.9,2776.8,0.72]
[1752104521297,3.58275776,2776.9,2776.8,0.72]
[1752104521499,0.72004,2776.7,2776.6,0.72002]
[1752104521696,2.36334768,2776.7,2776.6,0.72002]
[1752104521996,3.31214768,2776.7,2776.6,0.72002]
[1752104523395,0.72009,2776.6,2776.5,0.72006]
[1752104523597,2.95669,2776.6,2776.5,0.72006]
[1752104523898,2.2366,2776.6,2776.3,0.652]
[1752104524201,1.95180768,2776.5,2776.4,0.7201]
[1752104524399,3.31218768,2776.5,2776.2,6.40811993]
[1752104524606,1.00300768,2776.3,2776.2,3.92795]
[1752104524899,2.59210768,2776.3,2776.2,3.92795]
[1752104527202,3.31223768,2776.3,2776.2,3.92795]
[1752104527404,2.59210768,2776.3,2776.2,3.92795]
[1752104528604,3.31223768,2776.3,2776.2,3.92795]
[1752104529698,0.7202,2776.1,2775.6,5.00105993]
[1752104530007,1.00300768,2775.9,2775.8,0.72026]
[1752104530296,2.55050768,2775.9,2775.8,0.72026]
[1752104533504,6.47853768,2775.9,2775.8,0.72026]
[1752104533806,5.75830768,2775.9,2775.8,0.72026]
[1752104534105,6.47853768,2775.9,2775.8,0.72026]
[1752104534302,5.75830768,2775.9,2775.8,0.72026]
[1752104534503,5.75830768,2775.9,2775.6,1.80074]
[1752104534504,5.75830768,2775.9,2775.6,0.72028]
[1752104534703,1.00300768,2775.7,2775.6,0.72028]
[1752104534905,1.60910768,2775.7,2775.6,0.72028]
[1752104535098,1.60910768,2775.7,2775.4,3.08329]
[1752104535099,3.2078,2776.2,2775.7,0.72028]
[1752104535300,0.6061,2776.2,2776.1,0.72018]
[1752104535502,4.1492,2776.4,2776.3,0.72013]
[1752104535702,4.7553,2776.4,2776.3,0.72013]
[1752104536601,4.7553,2776.4,2776.3,1.95493]
[1752104536807,3.8139,2776.4,2776.3,1.95493]
[1752104538210,0.6061,2776.4,2776.3,1.95493]
[1752104538811,0.6034,2776.7,2776.4,1.80025]
[1752104539007,2.55050768,2776.6,2776.5,0.72007]
[1752104540099,1.5475,2776.6,2776.5,0.72007]
[1752104540500,3.2078,2776.8,2776.4,3.02565]
[1752104540705,3.8139,2776.8,2776.7,0.72002]
[1752104540906,4.7553,2776.8,2776.7,0.72002]
[1752104541506,1.5475,2776.8,2776.7,0.72002]
[1752104541706,0.6061,2776.8,2776.7,1.94542]
[1752104542109,25.43892,2777.1,2777.0,0.71995]
[1752104542110,0.9414,2777.1,2777.0,0.71995]
[1752104542310,4.46614693,2777.1,2777.0,0.71995]
[1752104543013,5.18606693,2777.1,2777.0,0.71995]
[1752104543408,4.46614693,2777.1,2777.0,0.71995]
[1752104543813,5.18606693,2777.1,2777.0,0.71995]
[1752104544013,3.90282768,2777.1,2777.0,0.71995]
[1752104544214,0.6061,2777.1,2777.0,0.71995]
[1752104545014,3.2078,2777.5,2777.4,0.71984]
[1752104545217,3.51e-06,2777.5,2777.4,0.71984]
[1752104545411,3.2078,2777.8,2777.7,0.71976]
[1752104545712,3.2078,2778.1,2778.0,0.71969]
[1752104547915,4.81690768,2778.4,2778.3,0.71961]
[1752104548610,4.21080768,2778.4,2778.3,0.71961]
[1752104548810,5.75830768,2778.4,2778.3,0.71961]
[1752104549414,0.71963,2778.3,2778.2,0.71962]
[1752104549917,5.75830768,2778.4,2778.3,0.71961]
[1752104550314,6.47788768,2778.4,2778.3,0.71961]
[1752104550617,5.75830768,2778.4,2778.3,0.71961]
[1752104552119,4.81690768,2778.4,2778.3,0.71961]
[1752104552709,5.75830768,2778.4,2778.3,0.71961]
[1752104553620,2.55050768,2778.4,2778.3,0.71961]
[1752104555321,1.60910768,2778.4,2778.3,0.71961]
[1752104555522,0.6061,2778.4,2778.3,0.71961]
[1752104556423,2.55050768,2778.4,2778.3,0.71961]
[1752104558927,3.27008768,2778.4,2778.3,0.71961]
[1752104559226,0.71966,2778.2,2778.1,0.71962]
[1752104559428,3.31166768,2778.2,2778.1,0.71962]
[1752104559629,0.71971,2778.0,2777.9,0.71968]
[1752104559824,1.33331,2778.0,2777.9,0.71968]
[1752104560028,7.59200768,2778.0,2777.5,1.79955]
[1752104560229,2.99844,2777.9,2777.8,0.71972]
[1752104560523,4.61504768,2777.9,2777.8,0.71972]
[1752104561230,3.89530768,2777.9,2777.8,0.71972]
[1752104561522,2.59200768,2777.9,2777.8,0.71972]
[1752104561728,1.61660768,2777.9,2777.8,0.71972]
[1752104562829,0.6136,2777.9,2777.8,0.71972]
[1752104563232,1.61660768,2777.9,2777.8,0.71972]
[1752104563431,2.59200768,2777.9,2777.8,0.71972]
[1752104565935,0.6136,2777.9,2777.8,0.71972]
[1752104566630,1.61660768,2777.9,2777.8,0.71972]
[1752104567333,2.59200768,2777.9,2777.8,0.71974]
[1752104567530,4.63645768,2777.9,2777.8,0.71974]
[1752104567730,3.31175768,2777.9,2777.8,0.71974]
[1752104570239,2.59200768,2777.9,2777.8,0.71974]
[1752104571133,1.61660768,2777.9,2777.8,0.71974]
[1752104571338,1.589,2777.9,2777.8,0.71974]
[1752104575445,3.6210969,2777.9,2777.8,0.71974]
[1752104575646,4.8242969,2777.9,2777.8,0.71974]
[1752104576148,0.71977,2777.8,2777.7,0.71974]
[1752104576440,0.71981,2777.7,2777.6,0.71977]
[1752104576640,3.6211269,2777.7,2777.6,0.71977]
[1752104577236,0.71983,2777.6,2777.5,0.71979]
[1752104577442,3.31183768,2777.6,2777.5,0.71979]
[1752104577639,2.33643768,2777.6,2777.5,0.71979]
[1752104577840,3.31183768,2777.6,2777.5,0.71979]
[1752104578345,4.62386937,2777.6,2777.5,0.71979]
[1752104579239,0.71987,2777.4,2777.3,0.71983]
[1752104579545,3.92763,2777.5,2777.4,0.71982]
[1752104579746,5.85459456,2777.5,2777.4,0.71982]
[1752104580145,6.11016456,2777.5,2777.4,0.71982]
[1752104580344,6.82998456,2777.5,2777.4,0.71982]
[1752104580744,7.83299224,2777.5,2777.4,0.71982]
[1752104581348,7.11317224,2777.5,2777.4,0.71982]
[1752104581743,7.83299224,2777.5,2777.4,0.71982]
[1752104582444,7.11317224,2777.5,2777.4,0.71982]
[1752104582646,6.13777224,2777.5,2777.4,0.71982]
[1752104583645,4.82440768,2777.5,2777.4,0.71982]
[1752104584549,3.2078,2777.5,2777.4,0.71982]
[1752104584752,1.00300768,2777.7,2777.6,0.71979]
[1752104584948,1.61660768,2777.7,2777.6,0.71979]
[1752104585340,0.6136,2777.7,2777.6,0.71979]
[1752104585546,2.90436862,2777.7,2777.6,0.71979]
[1752104585746,3.9073763,2777.7,2777.6,0.71979]
[1752104588451,4.6271363,2777.7,2777.6,0.71979]
[1752104589953,0.71984,2777.5,2777.4,0.7198]
[1752104590153,5.6552635,2777.5,2777.4,0.7198]
[1752104590554,0.71992,2777.1,2777.0,3.93793467]
[1752104590755,0.71992,2777.1,2777.0,0.71995]
[1752104590756,5.82340768,2777.1,2777.0,0.71995]
[1752104591649,7.13966125,2777.1,2777.0,0.71995]
[1752104592161,5.82340768,2777.1,2777.0,0.71995]
[1752104594154,4.83400768,2777.1,2777.0,0.71995]
[1752104594858,5.82340768,2777.1,2777.0,0.71995]
[1752104596864,3.831,2777.1,2777.0,0.71995]
[1752104597459,0.6232,2777.1,2777.0,0.71995]
[1752104597659,1.6042,2777.4,2777.3,0.71987]
[1752104597857,4.548829,2777.4,2777.3,0.71987]
[1752104598054,1.31842132,2777.4,2777.3,0.71987]
[1752104598748,1.31842132,2777.4,2777.3,1.97757]
[1752104599158,1.94162132,2777.4,2777.3,1.97757]
[1752104600659,2.93102132,2777.4,2777.3,0.71987]
[1752104600862,3.934029,2777.4,2777.3,0.71987]
[1752104605360,1.94162132,2777.4,2777.3,0.71987]
[1752104606661,2.944629,2777.4,2777.3,0.71987]
[1752104606863,3.934029,2777.4,2777.3,0.71987]
[1752104608468,4.653869,2777.4,2777.3,0.71987]
[1752104608663,0.71992,2777.3,2777.2,0.71987]
[1752104608865,3.65094132,2777.3,2777.2,0.71987]
[1752104609065,0.71994,2777.2,2777.1,0.7199]
[1752104609265,4.653969,2777.2,2777.1,0.7199]
[1752104609463,5.921769,2777.2,2777.1,0.7199]
[1752104609866,0.71997,2777.0,2776.9,0.71993]
[1752104610067,3.33557768,2777.0,2776.9,0.71993]
[1752104610360,0.9894,2777.6,2776.9,3.2078]
[1752104610563,1.31547488,2777.5,2777.4,0.71984]
[1752104610769,1.93867488,2777.5,2777.4,0.71984]
[1752104610968,4.47756071,2778.0,2777.9,0.71971]
[1752104611163,2.92224181,2778.0,2777.9,0.71971]
[1752104611362,3.54544181,2778.0,2777.9,0.71971]
[1752104612166,6.75520252,2778.0,2777.9,0.71971]
[1752104612367,6.75520252,2778.0,2777.9,1.12888291]
[1752104613573,3.54544181,2778.0,2777.9,1.12888291]
[1752104613872,4.26513181,2778.0,2777.9,1.12888291]
[1752104614071,7.49445827,2778.0,2777.9,1.12888291]
[1752104614272,4.26513181,2778.0,2777.9,1.12888291]
[1752104614671,3.54544181,2778.0,2777.9,1.12888291]
[1752104614873,4.26513181,2778.0,2777.9,1.12888291]
[1752104615471,3.54544181,2778.0,2777.9,1.12888291]
[1752104616370,3.54544181,2778.0,2777.9,0.71971]
[1752104616371,4.54844949,2778.0,2777.9,0.71971]
[1752104616575,5.26813949,2778.0,2777.9,0.71971]
[1752104616873,4.54844949,2778.0,2777.9,0.71971]
[1752104618279,3.55904949,2778.0,2777.9,0.71971]
[1752104619076,5.19223949,2778.0,2777.9,0.71971]
[1752104620673,11.27180949,2778.0,2777.3,1.79966]
[1752104620873,11.27180949,2778.0,2777.6,0.71976]
[1752104620874,0.71981,2777.7,2777.6,0.71976]
[1752104621074,2.23631,2777.7,2777.6,0.71976]
[1752104621980,0.71983,2777.6,2777.5,0.7198]
[1752104622176,3.90703768,2777.6,2777.5,0.7198]
[1752104622979,5.21026138,2777.6,2777.5,0.7198]
[1752104624375,5.21002393,2777.6,2777.5,0.7198]
[1752104627979,4.49019393,2777.6,2777.2,5.62224]
[1752104628178,1.00300768,2777.3,2777.2,0.71989]
[1752104628390,2.51950768,2777.3,2777.2,0.71989]
[1752104629076,3.23937768,2777.3,2777.2,0.71989]
[1752104629276,2.51950768,2777.3,2777.2,0.71989]
[1752104629982,1.60600768,2777.3,2777.2,0.71989]
[1752104630579,1.79942,2777.7,2777.3,0.71987]
[1752104630780,0.71984,2777.5,2777.4,0.71979]
[1752104630979,2.62666867,2777.5,2777.4,0.71979]
[1752104631178,2.62664867,2777.5,2777.4,0.71979]
[1752104631383,1.90682867,2777.5,2777.4,0.71979]
[1752104634380,1.30382867,2777.5,2777.4,0.71979]
[1752104634581,1.63323,2777.9,2777.8,0.71974]
[1752104634781,2.93720383,2777.9,2777.8,0.71974]
[1752104634985,3.54020383,2777.9,2777.8,0.71974]
[1752104638787,2.82047383,2777.9,2777.8,0.71974]
[1752104638986,3.82348151,2777.9,2777.8,0.71974]
[1752104639383,2.82047383,2777.9,2777.8,0.71974]
[1752104639690,1.90697383,2777.9,2777.8,0.71974]
[1752104641190,2.62668383,2777.9,2777.8,0.71974]
[1752104641390,1.90697383,2777.9,2777.8,0.71974]
[1752104642586,3.54018383,2777.9,2777.8,0.71974]
[1752104642890,3.82348151,2777.9,2777.8,0.71974]
[1752104643091,2.90998151,2777.9,2777.8,0.71974]
[1752104644786,3.62969151,2777.9,2777.8,0.71974]
[1752104644991,2.90998151,2777.9,2777.8,0.71974]
[1752104647691,4.60389151,2777.9,2777.8,0.71974]
[1752104647887,1.30397383,2777.9,2777.8,0.71974]
[1752104648191,3.2078,2778.1,2778.0,0.71969]
[1752104648387,0.71971,2778.0,2777.9,0.71969]
[1752104648584,3.62261455,2778.0,2777.9,0.71969]
[1752104649187,2.90290455,2778.0,2777.9,0.71969]
[1752104650391,3.62259455,2778.0,2777.9,0.71969]
[1752104650792,0.71975,2777.9,2777.8,0.71972]
[1752104650992,3.01915455,2777.9,2777.8,0.71972]
[1752104651690,4.60945455,2777.9,2777.8,0.71972]
[1752104654495,3.88970455,2777.9,2777.8,0.71972]
[1752104654696,3.31301768,2777.9,2777.8,0.71972]
[1752104655197,4.60896364,2777.9,2777.8,0.71972]
[1752104655690,4.60896364,2777.9,2777.4,6.92632467]
[1752104655691,3.88925364,2777.9,2777.4,6.92632467]
[1752104655896,4.90176,2777.8,2777.7,0.71974]
[1752104656197,6.81416952,2777.8,2777.7,0.71974]
[1752104656900,6.81420538,2777.8,2777.7,0.71974]
[1752104657493,2.88664538,2777.8,2777.7,0.71974]
[1752104657699,3.60638538,2777.8,2777.7,0.71974]
[1752104657894,6.81418538,2777.8,2777.7,0.71974]
[1752104658592,0.71981,2777.7,2777.6,0.71977]
[1752104658797,3.54501,2777.7,2777.6,0.71977]
[1752104659197,4.54801768,2777.7,2777.6,0.71977]
[1752104659400,5.84489575,2777.7,2777.6,0.71977]
[1752104659596,3.89018575,2777.7,2777.6,0.71977]
[1752104660199,4.60994575,2777.7,2777.6,0.71977]
[1752104660399,3.31306768,2777.7,2777.6,0.71977]
[1752104661299,4.61043781,2777.7,2777.6,0.71977]
[1752104666010,4.61175356,2777.7,2777.6,0.71977]
[1752104670011,0.71984,2777.5,2777.4,0.7198]
[1752104670313,4.61183356,2777.5,2777.4,0.7198]
[1752104673712,3.89199356,2777.5,2777.4,0.7198]
[1752104674114,4.61181356,2777.5,2777.4,0.7198]
[1752104674817,3.89199356,2777.5,2777.4,0.7198]
[1752104676319,2.91779356,2777.5,2777.4,0.7198]
[1752104677411,4.60361356,2777.5,2777.4,0.7198]
[1752104680821,7.81141356,2777.5,2777.4,0.7198]
[1752104682317,7.09159356,2777.5,2777.4,0.7198]
[1752104682920,7.81141356,2777.5,2777.4,0.7198]
[1752104683817,7.09159356,2777.5,2777.4,0.7198]
[1752104685425,7.81141356,2777.5,2777.4,0.7198]
[1752104685826,7.09159356,2777.5,2777.4,0.7198]
[1752104686620,7.81141356,2777.5,2777.4,0.7198]
[1752104690828,0.71989,2777.3,2777.2,0.71985]
[1752104691027,3.34539768,2777.3,2777.2,0.71985]
[1752104691229,1.65950768,2777.3,2777.2,0.71985]
[1752104691426,0.6565,2777.3,2777.2,2.04715]
[1752104693022,1.37637,2777.3,2777.2,2.04715]
[1752104693229,3.34537768,2777.3,2777.2,0.71985]
[1752104693629,4.63500056,2777.3,2777.2,0.71985]
[1752104694628,3.91513056,2777.3,2777.2,0.71985]
[1752104694829,4.63500056,2777.3,2777.2,0.71985]
[1752104696134,3.63199288,2777.3,2777.2,0.71985]
[1752104696424,3.91513056,2777.3,2777.2,0.71985]
[1752104696829,1.94612288,2777.3,2777.2,0.71985]
[1752104697034,1.94612288,2777.3,2777.2,1.95315]
[1752104697630,5.17680768,2777.5,2777.4,0.71984]
[1752104697832,7.12349262,2777.5,2777.4,0.71984]
[1752104698534,7.84331262,2777.5,2777.4,0.71984]
[1752104701432,7.12349262,2777.5,2777.4,0.71984]
[1752104701632,7.84331262,2777.5,2777.4,0.71984]
[1752104702337,7.84331262,2777.5,2777.1,5.62181467]
[1752104702338,0.71988,2777.4,2777.3,0.71984]
[1752104702538,2.66656494,2777.4,2777.3,0.71984]
[1752104702738,3.63256494,2777.4,2777.3,0.71984]
[1752104703240,3.63256494,2777.4,2777.0,5.65115]
[1752104703241,0.71989,2777.3,2777.2,0.71987]
[1752104703539,4.63558262,2777.3,2777.2,0.71987]
[1752104705540,3.91569262,2777.3,2777.2,0.71987]
[1752104707039,4.63556262,2777.3,2777.2,0.71987]
[1752104707243,3.91569262,2777.3,2777.2,0.71987]
[1752104707838,1.94668494,2777.3,2777.2,0.71987]
[1752104709541,1.94668494,2777.3,2777.2,1.94177]
[1752104710846,3.2078,2777.5,2777.4,0.71984]
[1752104711147,1.90720143,2777.5,2777.4,0.71984]
[1752104711345,2.87640143,2777.5,2777.4,0.71984]
[1752104712245,3.59622143,2777.5,2777.4,0.71984]
[1752104712641,2.87640143,2777.5,2777.4,0.71984]
[1752104714146,3.59622143,2777.5,2777.4,0.71984]
[1752104714448,2.87640143,2777.5,2777.4,0.71984]
[1752104722052,1.90720143,2777.5,2777.4,0.71984]
[1752104722857,1.90720143,2777.5,2777.4,1.34634]
[1752104725164,1.90720143,2777.5,2777.4,2.66494]
[1752104725663,1.29740143,2777.5,2777.4,2.66494]
[1752104725864,0.6106,2777.7,2777.6,0.71979]
[1752104726163,2.51719328,2777.7,2777.6,0.71979]
[1752104726363,1.90659328,2777.7,2777.6,0.71979]
[1752104726862,2.87579328,2777.7,2777.6,0.71979]
[1752104727763,1.29679328,2777.7,2777.6,0.71979]
[1752104728162,1.5887,2777.9,2777.8,0.71974]
[1752104728466,3.49515785,2777.9,2777.8,1.21015206]
[1752104729265,4.21486785,2777.9,2777.8,1.21015206]
[1752104729466,3.49515785,2777.9,2777.8,1.21015206]
[1752104730868,4.21486785,2777.9,2777.8,1.21015206]
[1752104731864,3.49515785,2777.9,2777.8,1.21015206]
[1752104734970,0.6098,2777.9,2777.8,1.21015206]
[1752104736568,3.2078,2778.1,2778.0,0.71969]
[1752104736769,4.49024299,2778.1,2778.0,1.21010206]
[1752104736970,6.06924299,2778.1,2778.0,1.21010206]
[1752104737165,6.78890299,2778.1,2778.0,1.21010206]
[1752104737366,6.78890299,2778.1,2778.0,1.21052318]
[1752104738071,6.78890299,2778.1,2778.0,1.21046185]
[1752104738973,6.78890299,2778.1,2778.0,0.71969]
[1752104739670,6.78831139,2778.1,2778.0,0.71969]
[1752104741668,6.06865139,2778.1,2778.0,0.71969]
[1752104742870,5.09945139,2778.1,2778.0,0.71969]
[1752104744669,1.89165139,2778.1,2778.0,0.71969]
[1752104744871,0.6552,2778.2,2778.1,0.71966]
[1752104745076,0.9451,2778.4,2778.3,0.71961]
[1752104745278,2.88523345,2778.4,2778.3,0.71961]
[1752104746774,1.94013345,2778.4,2778.3,0.71961]
[1752104748281,2.88523345,2778.4,2778.3,0.71961]
[1752104748883,1.94013345,2778.4,2778.3,0.71961]
[1752104749289,3.22932646,2779.1,2778.6,0.71953]
[1752104749583,0.6599,2778.9,2778.8,0.71948]
[1752104749972,1.605,2778.9,2778.8,0.71948]
[1752104750175,2.60800768,2778.9,2778.8,0.71948]
[1752104752687,3.32745768,2778.9,2778.8,0.71948]
[1752104752888,2.60800768,2778.9,2778.8,0.71948]
[1752104753684,5.81580768,2778.9,2778.8,0.71948]
[1752104753884,6.53525768,2778.9,2778.8,0.71948]
[1752104754987,5.81580768,2778.9,2778.8,0.71948]
[1752104761389,2.64332,2779.1,2779.0,0.71943]
[1752104761390,0.6046,2779.1,2779.0,0.71943]
[1752104761589,4.1529,2779.2,2779.1,0.7194]
[1752104761890,4.8128,2779.2,2779.1,0.7194]
[1752104762081,3.8677,2779.2,2779.1,0.7194]
[1752104762390,0.6599,2779.2,2779.1,0.7194]
[1752104762889,1.605,2779.2,2779.1,0.7194]
[1752104763288,0.6599,2779.2,2779.1,0.7194]
[1752104764389,1.605,2779.2,2779.1,0.7194]
[1752104765284,1.605,2779.2,2779.1,1.2067446]
[1752104765488,0.6599,2779.2,2779.1,1.2067446]
[1752104765790,0.6599,2779.2,2779.1,1.20670607]
[1752104766784,1.605,2779.2,2779.1,1.20670607]
[1752104767088,4.8128,2779.2,2779.1,1.20670607]
[1752104767290,6.1325,2779.2,2779.1,1.20670607]
[1752104768793,6.85188,2779.2,2779.1,1.20670607]
[1752104769189,6.1325,2779.2,2779.1,1.20670607]
[1752104769495,5.53218,2779.2,2779.1,1.20670607]
[1752104770997,5.53218,2779.2,2779.1,0.48730607]
[1752104771200,0.7194,2779.1,2779.0,0.71942]
[1752104771395,5.22680768,2779.1,2779.0,0.71942]
[1752104773401,6.49334157,2779.1,2779.0,0.71942]
[1752104775600,5.77394157,2779.1,2779.0,0.71942]
[1752104776303,6.49334157,2779.1,2779.0,0.71942]
[1752104777802,0.71948,2778.9,2778.8,0.71944]
[1752104778008,0.71953,2778.7,2778.6,0.71948]
[1752104778209,3.29893768,2778.7,2778.6,0.71948]
[1752104778416,3.84949229,2778.7,2778.6,0.71948]
[1752104778706,4.56899229,2778.7,2778.6,0.71948]
[1752104778905,5.23219229,2778.7,2778.6,0.71948]
[1752104779405,4.51269229,2778.7,2778.6,0.71948]
[1752104779802,5.23219229,2778.7,2778.6,0.71948]
[1752104780006,4.51269229,2778.7,2778.6,0.71948]
[1752104780905,5.23219229,2778.7,2778.6,0.71948]
[1752104781102,4.51269229,2778.7,2778.6,0.71948]
[1752104781810,5.23219229,2778.7,2778.6,0.71948]
[1752104782008,5.23219229,2778.7,2778.2,3.21802467]
[1752104782009,0.71961,2778.3,2778.2,3.21802467]
[1752104782207,0.71963,2778.2,2778.1,0.71964]
[1752104782407,3.28612967,2778.2,2778.1,0.71964]
[1752104782608,4.22202967,2778.2,2778.1,0.71964]
[1752104783411,2.95173,2778.2,2778.1,0.71964]
[1752104784210,2.2321,2778.2,2778.1,0.71964]
[1752104784611,0.6405,2778.2,2778.1,0.71964]
[1752104785414,1.5764,2778.2,2778.1,0.71964]
[1752104786016,0.6405,2778.2,2778.1,0.71964]
[1752104787016,1.5764,2778.2,2778.1,0.71964]
[1752104791619,2.29603,2778.2,2778.1,0.71964]
[1752104792119,1.5764,2778.2,2778.1,0.71964]
[1752104795330,2.29603,2778.2,2778.1,0.71964]
[1752104795525,1.5764,2778.2,2778.1,0.71964]
[1752104797828,2.29603,2778.2,2778.1,0.71964]
[1752104798624,1.5764,2778.2,2778.1,0.71964]
[1752104804432,1.90700768,2778.4,2778.3,0.71961]
[1752104804633,3.87495431,2778.4,2778.3,0.71961]
[1752104805534,4.59453431,2778.4,2778.3,0.71961]
[1752104805736,3.26768768,2778.4,2778.3,0.71961]
[1752104806330,4.59523999,2778.4,2778.3,0.71961]